[Event "FIDE Grand Swiss 2023"]
[Site "Villa Marina, Douglas, Isle of Man, Isle Of Man"]
[Date "2023.11.05"]
[Round "11.14"]
[White "Ter-Sahakyan, Samvel"]
[Black "Sarana, Alexey"]
[Result "1/2-1/2"]
[TimeControl "40/90 + 30 + 30s/move"]
[WhiteClock "00:02:25"]
[BlackClock "00:39:12"]
[ReferenceTime "W/2023-11-05T20:31:28.984Z"]
[WhiteFideId "13302531"]
[BlackFideId "24133795"]
[WhiteElo "2618"]
[BlackElo "2682"]

1. e4 {[%clk 01:40:57]} {[%emt 00:00:03]} c5 {[%clk 01:40:54]} {[%emt
00:00:07]} 2. Nf3 {[%clk 01:41:16]} {[%emt 00:00:11]} d6 {[%clk 01:41:19]}
{[%emt 00:00:05]} 3. d4 {[%clk 01:41:29]} {[%emt 00:00:17]} cxd4 {[%clk
01:41:44]} {[%emt 00:00:04]} 4. Nxd4 {[%clk 01:41:55]} {[%emt 00:00:04]} Nf6
{[%clk 01:42:08]} {[%emt 00:00:06]} 5. Nc3 {[%clk 01:42:21]} {[%emt 00:00:04]}
a6 {[%clk 01:42:32]} {[%emt 00:00:07]} 6. h3 {[%clk 01:42:26]} {[%emt
00:00:25]} e5 {[%clk 01:42:03]} {[%emt 00:00:59]} 7. Nf3 {[%clk 01:42:49]}
{[%emt 00:00:07]} Be7 {[%clk 01:40:58]} {[%emt 00:01:35]} 8. g4 {[%clk
01:42:47]} {[%emt 00:00:32]} h6 {[%clk 01:39:42]} {[%emt 00:01:46]} 9. Rg1
{[%clk 01:42:52]} {[%emt 00:00:25]} Nc6 {[%clk 01:33:12]} {[%emt 00:07:00]} 10.
g5 {[%clk 01:40:04]} {[%emt 00:03:18]} hxg5 {[%clk 01:33:21]} {[%emt 00:00:21]}
11. Nxg5 {[%clk 01:40:29]} {[%emt 00:00:05]} Nd4 {[%clk 01:32:04]} {[%emt
00:01:48]} 12. Bc4 {[%clk 01:16:46]} {[%emt 00:24:12]} Ng4 {[%clk 01:30:23]}
{[%emt 00:02:10]} 13. Nxf7 {[%clk 00:56:25]} {[%emt 00:20:52]} Nxf2 {[%clk
01:29:41]} {[%emt 00:01:12]} 14. Nxd8 {[%clk 00:52:09]} {[%emt 00:04:46]} Nxd1
{[%clk 01:26:45]} {[%emt 00:03:25]} 15. Kxd1 {[%clk 00:52:35]} {[%emt
00:00:05]} Bxd8 {[%clk 01:11:51]} {[%emt 00:15:24]} 16. Rxg7 {[%clk 00:52:54]}
{[%emt 00:00:11]} Rxh3 {[%clk 01:11:58]} {[%emt 00:00:23]} 17. Rg8+ {[%clk
00:32:41]} {[%emt 00:20:43]} Kd7 {[%clk 01:12:07]} {[%emt 00:00:21]} 18. Ne2
{[%clk 00:24:07]} {[%emt 00:09:04]} Bf6 {[%clk 00:59:39]} {[%emt 00:12:57]} 19.
Nxd4 {[%clk 00:20:14]} {[%emt 00:04:24]} exd4 {[%clk 00:57:08]} {[%emt
00:03:01]} 20. Ke2 {[%clk 00:17:25]} {[%emt 00:03:19]} Rh2+ {[%clk 00:55:50]}
{[%emt 00:01:48]} 21. Kd3 {[%clk 00:17:50]} {[%emt 00:00:04]} Be5 {[%clk
00:48:04]} {[%emt 00:08:17]} 22. Bg5 {[%clk 00:17:10]} {[%emt 00:01:09]} Kc6
{[%clk 00:37:53]} {[%emt 00:10:42]} 23. Rg1 {[%clk 00:14:34]} {[%emt 00:03:05]}
Rh3+ {[%clk 00:30:30]} {[%emt 00:07:54]} 24. Kd2 {[%clk 00:14:42]} {[%emt
00:00:20]} Rh2+ {[%clk 00:29:55]} {[%emt 00:01:07]} 25. Kd3 {[%clk 00:15:03]}
{[%emt 00:00:10]} Rh3+ {[%clk 00:30:21]} {[%emt 00:00:02]} 26. Kd2 {[%clk
00:15:29]} {[%emt 00:00:05]} Rh2+ {[%clk 00:30:48]} {[%emt 00:00:03]} 27. Kc1
{[%clk 00:13:37]} {[%emt 00:02:23]} Kb6 {[%clk 00:31:04]} {[%emt 00:00:13]} 28.
a4 {[%clk 00:12:42]} {[%emt 00:01:25]} Ka7 {[%clk 00:31:25]} {[%emt 00:00:09]}
29. a5 {[%clk 00:12:28]} {[%emt 00:00:44]} Bh3 {[%clk 00:20:10]} {[%emt
00:11:45]} 30. Bd8 {[%clk 00:09:37]} {[%emt 00:03:20]} Rc8 {[%clk 00:20:38]}
{[%emt 00:00:02]} 31. Bb6+ {[%clk 00:09:32]} {[%emt 00:00:35]} Kb8 {[%clk
00:21:07]} {[%emt 00:00:01]} 32. Kb1 {[%clk 00:09:14]} {[%emt 00:00:48]} Rf2
{[%clk 00:21:23]} {[%emt 00:00:14]} 33. Rxc8+ {[%clk 00:08:54]} {[%emt
00:00:51]} Kxc8 {[%clk 00:21:52]} {[%emt 00:00:01]} 34. Rg8+ {[%clk 00:07:33]}
{[%emt 00:01:51]} Kd7 {[%clk 00:22:21]} {[%emt 00:00:01]} 35. Rb8 {[%clk
00:06:56]} {[%emt 00:01:06]} Bf1 {[%clk 00:17:05]} {[%emt 00:05:47]} 36. Rxb7+
{[%clk 00:06:29]} {[%emt 00:00:57]} Kc8 {[%clk 00:17:33]} {[%emt 00:00:01]} 37.
Rc7+ {[%clk 00:04:51]} {[%emt 00:02:08]} Kb8 {[%clk 00:18:03]} {[%emt
00:00:01]} 38. Be6 {[%clk 00:03:42]} {[%emt 00:01:38]} d3 {[%clk 00:13:06]}
{[%emt 00:05:27]} 39. Rc8+ {[%clk 00:03:56]} {[%emt 00:00:17]} Kb7 {[%clk
00:13:36]} 40. Rc7+ {[%clk 00:03:45]} {[%emt 00:00:40]} Kb8 {[%clk 00:14:03]}
{[%emt 00:00:02]} 41. Rc8+ {[%clk 00:36:57]} {[%emt 00:17:18]} Kb7 {[%clk
01:04:32]} {[%emt 00:00:02]} 42. Bxf2 {[%clk 00:37:14]} {[%emt 00:00:13]} d2
{[%clk 01:04:58]} {[%emt 00:00:04]} 43. Bg4 {[%clk 00:37:35]} {[%emt 00:00:08]}
Bh3 {[%clk 01:05:16]} {[%emt 00:00:13]} 44. Be2 {[%clk 00:29:25]} {[%emt
00:08:40]} Bf1 {[%clk 01:05:20]} {[%emt 00:00:26]} 45. Bg4 {[%clk 00:29:47]}
{[%emt 00:00:08]} Bh3 {[%clk 01:05:45]} {[%emt 00:00:04]} 46. Bd1 {[%clk
00:27:25]} {[%emt 00:02:51]} Kxc8 {[%clk 01:05:48]} {[%emt 00:00:27]} 47. Be3
{[%clk 00:27:00]} {[%emt 00:00:56]} Bg2 {[%clk 01:06:13]} {[%emt 00:00:06]} 48.
Be2 {[%clk 00:26:41]} {[%emt 00:00:48]} Kb7 {[%clk 01:06:38]} {[%emt 00:00:05]}
49. Bxd2 {[%clk 00:27:07]} {[%emt 00:00:05]} Bxe4 {[%clk 01:07:05]} {[%emt
00:00:03]} 50. Be3 {[%clk 00:21:35]} {[%emt 00:06:01]} d5 {[%clk 01:06:44]}
{[%emt 00:00:51]} 51. Bb6 {[%clk 00:21:55]} {[%emt 00:00:10]} Bf6 {[%clk
01:07:00]} {[%emt 00:00:14]} 52. Kc1 {[%clk 00:21:22]} {[%emt 00:01:03]} Be5
{[%clk 01:03:12]} {[%emt 00:04:18]} 53. c3 {[%clk 00:21:10]} {[%emt 00:00:42]}
Bf4+ {[%clk 01:03:01]} {[%emt 00:00:41]} 54. Kd1 {[%clk 00:21:23]} {[%emt
00:00:18]} Bg5 {[%clk 00:57:45]} {[%emt 00:05:45]} 55. b4 {[%clk 00:17:36]}
{[%emt 00:04:17]} Bb1 {[%clk 00:48:52]} {[%emt 00:09:22]} 56. b5 {[%clk
00:13:39]} {[%emt 00:04:28]} axb5 {[%clk 00:45:49]} {[%emt 00:03:34]} 57. Bxb5
{[%clk 00:13:53]} {[%emt 00:00:15]} Bf5 {[%clk 00:46:15]} {[%emt 00:00:03]} 58.
Bd4 {[%clk 00:10:06]} {[%emt 00:04:18]} Bc8 {[%clk 00:46:16]} {[%emt 00:00:30]}
59. Kc2 {[%clk 00:08:49]} {[%emt 00:01:46]} Bd8 {[%clk 00:41:02]} {[%emt
00:05:43]} 60. a6+ {[%clk 00:09:08]} {[%emt 00:00:14]} Kb8 {[%clk 00:41:29]}
{[%emt 00:00:02]} 61. Kb3 {[%clk 00:04:36]} {[%emt 00:05:03]} Be7 {[%clk
00:41:33]} {[%emt 00:00:25]} 62. Ka4 {[%clk 00:02:52]} {[%emt 00:02:15]} Bd8
{[%clk 00:41:58]} {[%emt 00:00:04]} 63. Kb4 {[%clk 00:01:52]} {[%emt 00:01:30]}
Be7+ {[%clk 00:41:29]} {[%emt 00:00:59]} 64. Ka4 {[%clk 00:15:29]} {[%emt
00:01:53]} Bd8 {[%clk 00:56:52]} {[%emt 00:00:07]} 65. Be2 {[%clk 00:15:29]}
{[%emt 00:00:30]} Bd7+ {[%clk 00:56:54]} {[%emt 00:00:28]} 66. Kb4 {[%clk
00:15:03]} {[%emt 00:00:56]} Be7+ {[%clk 00:54:39]} {[%emt 00:02:45]} 67. Kb3
{[%clk 00:08:15]} {[%emt 00:07:17]} Bc8 {[%clk 00:51:40]} {[%emt 00:03:29]} 68.
Ka4 {[%clk 00:06:27]} {[%emt 00:02:19]} Bd7+ {[%clk 00:51:54]} {[%emt
00:00:16]} 69. Bb5 {[%clk 00:06:51]} {[%emt 00:00:05]} Bc8 {[%clk 00:51:25]}
{[%emt 00:00:58]} 70. Ka5 {[%clk 00:06:58]} {[%emt 00:00:23]} Bd8+ {[%clk
00:51:44]} {[%emt 00:00:12]} 71. Kb4 {[%clk 00:07:08]} {[%emt 00:00:20]} Be7+
{[%clk 00:50:46]} {[%emt 00:01:27]} 72. Bc5 {[%clk 00:07:34]} {[%emt 00:00:04]}
Bd8 {[%clk 00:46:12]} {[%emt 00:05:05]} 73. Bf1 {[%clk 00:07:57]} {[%emt
00:00:06]} Bf6 {[%clk 00:46:16]} {[%emt 00:00:25]} 74. Bd4 {[%clk 00:04:02]}
{[%emt 00:04:25]} Bxd4 {[%clk 00:39:39]} {[%emt 00:07:08]} 75. cxd4 {[%clk
00:04:29]} {[%emt 00:00:04]} Ka7 {[%clk 00:40:04]} {[%emt 00:00:04]} 76. Kc5
{[%clk 00:04:54]} {[%emt 00:00:05]} Be6 {[%clk 00:40:32]} {[%emt 00:00:03]} 77.
Bd3 {[%clk 00:04:46]} {[%emt 00:00:39]} Bf7 {[%clk 00:40:41]} {[%emt 00:00:19]}
78. Kc6 {[%clk 00:03:47]} {[%emt 00:01:29]} Be6 {[%clk 00:40:49]} {[%emt
00:00:22]} 79. Bf1 {[%clk 00:02:19]} {[%emt 00:01:58]} Bf7 {[%clk 00:41:00]}
{[%emt 00:00:18]} 80. Be2 {[%clk 00:02:46]} {[%emt 00:00:04]} Be6 {[%clk
00:41:01]} {[%emt 00:00:29]} 81. Kd6 {[%clk 00:02:56]} {[%emt 00:00:20]} Bf7
{[%clk 00:41:20]} {[%emt 00:00:11]} 82. Ke5 {[%clk 00:03:15]} {[%emt 00:00:11]}
Kb6 {[%clk 00:41:39]} {[%emt 00:00:11]} 83. Kf6 {[%clk 00:03:41]} {[%emt
00:00:04]} Bg8 {[%clk 00:40:30]} {[%emt 00:01:39]} 84. Bd3 {[%clk 00:02:53]}
{[%emt 00:01:19]} Ka7 {[%clk 00:40:58]} {[%emt 00:00:01]} 85. Ke7 {[%clk
00:01:54]} {[%emt 00:01:28]} Kb6 {[%clk 00:41:26]} {[%emt 00:00:03]} 86. Be2
{[%clk 00:01:12]} {[%emt 00:01:12]} Bh7 {[%clk 00:41:18]} {[%emt 00:00:38]} 87.
Ke6 {[%clk 00:01:15]} {[%emt 00:00:27]} Be4 {[%clk 00:41:22]} {[%emt 00:00:26]}
88. Kd6 {[%clk 00:01:28]} {[%emt 00:00:17]} Bg2 {[%clk 00:41:42]} {[%emt
00:00:10]} 89. Bb5 {[%clk 00:01:13]} {[%emt 00:00:45]} Bf3 {[%clk 00:42:01]}
{[%emt 00:00:12]} 90. Bf1 {[%clk 00:01:05]} {[%emt 00:00:38]} Be4 {[%clk
00:42:24]} {[%emt 00:00:07]} 91. Ke5 {[%clk 00:01:15]} {[%emt 00:00:21]} Ka7
{[%clk 00:42:27]} {[%emt 00:00:27]} 92. Bb5 {[%clk 00:01:03]} {[%emt 00:00:41]}
Kb6 {[%clk 00:42:40]} {[%emt 00:00:17]} 93. Be2 {[%clk 00:01:07]} {[%emt
00:00:26]} Ka7 {[%clk 00:43:03]} {[%emt 00:00:07]} 94. Kd6 {[%clk 00:01:04]}
{[%emt 00:00:33]} Kb6 {[%clk 00:43:28]} {[%emt 00:00:05]} 95. Bb5 {[%clk
00:01:27]} {[%emt 00:00:07]} Bf3 {[%clk 00:43:48]} {[%emt 00:00:09]} 96. Bc6
{[%clk 00:01:33]} {[%emt 00:00:24]} Kxa6 {[%clk 00:44:14]} {[%emt 00:00:04]} 97.
Bxd5 {[%clk 00:02:00]} {[%emt 00:00:04]} Bh5 {[%clk 00:41:48]} {[%emt
00:02:54]} 98. Kc6 {[%clk 00:01:54]} {[%emt 00:00:36]} Be8 {[%clk 00:38:27]}
{[%emt 00:03:52]} 99. Kc7 {[%clk 00:02:15]} {[%emt 00:00:10]} Kb5 {[%clk
00:38:45]} {[%emt 00:00:09]} 100. Bb3 {[%clk 00:02:07]} {[%emt 00:00:40]} Bc6
{[%clk 00:38:21]} {[%emt 00:00:54]} 101. Bc4+ {[%clk 00:02:00]} {[%emt
00:00:37]} Kxc4 {[%clk 00:38:46]} {[%emt 00:00:05]} 102. Kxc6 {[%clk 00:02:26]}
{[%emt 00:00:04]} Kxd4 {[%clk 00:39:12]} {[%emt 00:00:04]} 1/2-1/2

[Event "FIDE Grand Swiss 2023"]
[Site "Villa Marina, Douglas, Isle of Man, Isle Of Man"]
[Date "2023.11.05"]
[Round "11.15"]
[White "Firouzja, Alireza"]
[Black "Yakubboev, Nodirbek"]
[Result "1/2-1/2"]
[TimeControl "40/90 + 30 + 30s/move"]
[WhiteFideId "12573981"]
[BlackFideId "14203987"]
[WhiteElo "2777"]
[BlackElo "2616"]

1. e4 {[%clk 01:40:57]} {[%emt 00:00:02]} e5 {[%clk 01:40:34]} {[%emt
00:00:26]} 2. Nf3 {[%clk 01:41:22]} {[%emt 00:00:05]} Nc6 {[%clk 01:41:00]}
{[%emt 00:00:05]} 3. Bb5 {[%clk 01:41:47]} {[%emt 00:00:05]} a6 {[%clk
01:41:24]} {[%emt 00:00:07]} 4. Ba4 {[%clk 01:42:11]} {[%emt 00:00:05]} Nf6
{[%clk 01:41:43]} {[%emt 00:00:11]} 5. O-O {[%clk 01:42:34]} {[%emt 00:00:07]}
Nxe4 {[%clk 01:41:14]} {[%emt 00:00:59]} 6. d4 {[%clk 01:42:53]} {[%emt
00:00:10]} b5 {[%clk 01:41:40]} {[%emt 00:00:04]} 7. Bb3 {[%clk 01:43:16]}
{[%emt 00:00:07]} d5 {[%clk 01:42:05]} {[%emt 00:00:06]} 8. dxe5 {[%clk
01:43:33]} {[%emt 00:00:12]} Be6 {[%clk 01:42:29]} {[%emt 00:00:06]} 9. Nbd2
{[%clk 01:43:44]} {[%emt 00:00:19]} Nc5 {[%clk 01:40:50]} {[%emt 00:02:09]} 10.
c3 {[%clk 01:43:43]} {[%emt 00:00:32]} Be7 {[%clk 01:39:27]} {[%emt 00:01:51]}
11. Bc2 {[%clk 01:43:47]} {[%emt 00:00:27]} d4 {[%clk 01:39:49]} {[%emt
00:00:09]} 12. Nb3 {[%clk 01:44:05]} {[%emt 00:00:12]} dxc3 {[%clk 01:40:09]}
{[%emt 00:00:10]} 13. Nxc5 {[%clk 01:41:47]} {[%emt 00:02:48]} Bxc5 {[%clk
01:39:51]} {[%emt 00:00:45]} 14. Be4 {[%clk 01:41:00]} {[%emt 00:01:20]} Qd7
{[%clk 01:39:59]} {[%emt 00:00:23]} 15. Bg5 {[%clk 01:29:38]} {[%emt 00:11:51]}
h6 {[%clk 01:36:16]} {[%emt 00:04:13]} 16. Qc2 {[%clk 01:26:09]} {[%emt
00:03:59]} hxg5 {[%clk 01:36:22]} {[%emt 00:00:25]} 17. Rad1 {[%clk 01:09:27]}
{[%emt 00:17:11]} Nb4 {[%clk 01:36:39]} {[%emt 00:00:13]} 18. Qxc3 {[%clk
01:09:26]} {[%emt 00:00:31]} Bxf2+ {[%clk 01:37:03]} {[%emt 00:00:05]} 19. Kxf2
{[%clk 01:09:06]} {[%emt 00:00:50]} Nd5 {[%clk 01:37:31]} {[%emt 00:00:02]} 20.
Qc5 {[%clk 01:07:33]} {[%emt 00:02:03]} c6 {[%clk 01:37:37]} {[%emt 00:00:24]}
21. Nxg5 {[%clk 00:49:29]} {[%emt 00:18:34]} Qa7 {[%clk 01:29:58]} {[%emt
00:08:10]} 22. Rc1 {[%clk 00:46:08]} {[%emt 00:03:51]} Qxc5+ {[%clk 01:26:03]}
{[%emt 00:04:25]} 23. Rxc5 {[%clk 00:46:32]} {[%emt 00:00:06]} Rc8 {[%clk
01:23:20]} {[%emt 00:03:13]} 24. Kg3 {[%clk 00:37:05]} {[%emt 00:09:57]} Ke7
{[%clk 01:18:58]} {[%emt 00:04:52]} 25. Rfc1 {[%clk 00:37:30]} {[%emt
00:00:05]} Kd7 {[%clk 01:18:49]} {[%emt 00:00:39]} 26. Bf3 {[%clk 00:37:14]}
{[%emt 00:00:45]} Ne7 {[%clk 01:13:29]} {[%emt 00:05:50]} 27. b3 {[%clk
00:22:57]} {[%emt 00:14:47]} Rh6 {[%clk 01:09:25]} {[%emt 00:04:34]} 28. Be4
{[%clk 00:19:34]} {[%emt 00:03:54]} Bd5 {[%clk 00:37:26]} {[%emt 00:32:29]} 29.
Bxd5 {[%clk 00:17:01]} {[%emt 00:03:03]} Nxd5 {[%clk 00:35:59]} {[%emt
00:01:57]} 30. h4 {[%clk 00:17:24]} {[%emt 00:00:06]} Rg6 {[%clk 00:34:03]}
{[%emt 00:02:26]} 31. Kf3 {[%clk 00:16:32]} {[%emt 00:01:22]} Rh6 {[%clk
00:26:24]} {[%emt 00:08:09]} 32. g3 {[%clk 00:16:58]} {[%emt 00:00:05]} Rhh8
{[%clk 00:25:35]} {[%emt 00:01:19]} 33. Kg2 {[%clk 00:13:32]} {[%emt 00:03:56]}
Rhf8 {[%clk 00:23:39]} {[%emt 00:02:26]} 34. Kh3 {[%clk 00:12:34]} {[%emt
00:01:27]} f6 {[%clk 00:20:13]} {[%emt 00:03:57]} 35. e6+ {[%clk 00:06:51]}
{[%emt 00:06:13]} Ke7 {[%clk 00:15:46]} {[%emt 00:04:56]} 36. Nf3 {[%clk
00:06:25]} {[%emt 00:00:57]} Rfd8 {[%clk 00:04:12]} {[%emt 00:12:05]} 37. Nd4
{[%clk 00:01:22]} {[%emt 00:05:33]} Nf4+ {[%clk 00:04:36]} {[%emt 00:00:04]} 38.
gxf4 {[%clk 00:01:46]} {[%emt 00:00:06]} Rxd4 {[%clk 00:05:05]} {[%emt
00:00:02]} 39. Rxc6 {[%clk 00:01:24]} {[%emt 00:00:52]} Rxc6 {[%clk 00:05:19]}
{[%emt 00:00:15]} 40. Rxc6 {[%clk 00:01:35]} {[%emt 00:00:20]} Rxf4 {[%clk
00:05:44]} {[%emt 00:00:05]} 41. Rxa6 {[%clk 00:44:46]} {[%emt 00:07:20]} g5
{[%clk 00:54:37]} {[%emt 00:01:36]} 42. hxg5 {[%clk 00:44:18]} {[%emt
00:00:58]} fxg5 {[%clk 00:55:04]} {[%emt 00:00:03]} 43. Kg3 {[%clk 00:40:50]}
{[%emt 00:03:57]} Re4 {[%clk 00:54:49]} {[%emt 00:00:46]} 44. Rb6 {[%clk
00:39:54]} {[%emt 00:01:26]} Re2 {[%clk 00:54:35]} {[%emt 00:00:43]} 45. Rxb5
{[%clk 00:39:48]} {[%emt 00:00:36]} Rxa2 {[%clk 00:54:59]} {[%emt 00:00:06]} 46.
Rxg5 {[%clk 00:40:05]} {[%emt 00:00:13]} Kxe6 {[%clk 00:55:16]} {[%emt
00:00:14]} 1/2-1/2

[Event "FIDE Grand Swiss 2023"]
[Site "Villa Marina, Douglas, Isle of Man, Isle Of Man"]
[Date "2023.11.05"]
[Round "11.16"]
[White "Aravindh, Chithambaram Vr."]
[Black "Yu, Yangyi"]
[Result "1/2-1/2"]
[TimeControl "40/90 + 30 + 30s/move"]
[WhiteFideId "5072786"]
[BlackFideId "8603820"]
[WhiteElo "2649"]
[BlackElo "2720"]

1. e4 {[%clk 01:40:51]} {[%emt 00:00:08]} c5 {[%clk 01:40:42]} {[%emt
00:00:19]} 2. Nf3 {[%clk 01:41:11]} {[%emt 00:00:09]} d6 {[%clk 01:40:14]}
{[%emt 00:00:59]} 3. d4 {[%clk 01:41:29]} {[%emt 00:00:11]} cxd4 {[%clk
01:40:36]} {[%emt 00:00:09]} 4. Nxd4 {[%clk 01:41:52]} {[%emt 00:00:06]} Nf6
{[%clk 01:40:56]} {[%emt 00:00:10]} 5. Nc3 {[%clk 01:42:18]} {[%emt 00:00:04]}
a6 {[%clk 01:41:16]} {[%emt 00:00:11]} 6. Rg1 {[%clk 01:42:21]} {[%emt
00:00:27]} h5 {[%clk 01:38:22]} {[%emt 00:03:25]} 7. Bg5 {[%clk 01:42:31]}
{[%emt 00:00:19]} Nc6 {[%clk 01:37:35]} {[%emt 00:01:17]} 8. Qd2 {[%clk
01:37:56]} {[%emt 00:05:05]} Nxd4 {[%clk 01:35:55]} {[%emt 00:02:11]} 9. Qxd4
{[%clk 01:38:18]} {[%emt 00:00:07]} Qa5 {[%clk 01:36:19]} {[%emt 00:00:06]} 10.
Bd2 {[%clk 01:13:38]} {[%emt 00:25:09]} e5 {[%clk 01:34:23]} {[%emt 00:02:26]}
11. Qd3 {[%clk 01:12:39]} {[%emt 00:01:30]} Qc5 {[%clk 01:31:53]} {[%emt
00:03:00]} 12. Be3 {[%clk 01:10:56]} {[%emt 00:02:12]} Qa5 {[%clk 01:32:11]}
{[%emt 00:00:13]} 13. Bd2 {[%clk 01:07:40]} {[%emt 00:03:46]} Qc5 {[%clk
01:31:40]} {[%emt 00:00:59]} 14. Be3 {[%clk 01:07:46]} {[%emt 00:00:25]} Qa5
{[%clk 01:32:03]} {[%emt 00:00:08]} 15. Bd2 {[%clk 01:07:32]} {[%emt 00:00:43]}
Qc5 {[%clk 01:28:48]} {[%emt 00:03:45]} 1/2-1/2

[Event "FIDE Grand Swiss 2023"]
[Site "Villa Marina, Douglas, Isle of Man, Isle Of Man"]
[Date "2023.11.05"]
[Round "11.17"]
[White "Harikrishna, Pentala"]
[Black "Yilmaz, Mustafa"]
[Result "0-1"]
[TimeControl "40/90 + 30 + 30s/move"]
[WhiteFideId "5007003"]
[BlackFideId "6302718"]
[WhiteElo "2716"]
[BlackElo "2640"]

1. d4 {[%clk 01:40:56]} {[%emt 00:00:02]} Nf6 {[%clk 01:40:54]} {[%emt
00:00:06]} 2. c4 {[%clk 01:41:20]} {[%emt 00:00:06]} e6 {[%clk 01:41:20]}
{[%emt 00:00:04]} 3. Nf3 {[%clk 01:41:45]} {[%emt 00:00:05]} d5 {[%clk
01:41:34]} {[%emt 00:00:16]} 4. Nc3 {[%clk 01:42:10]} {[%emt 00:00:05]} Bb4
{[%clk 01:41:47]} {[%emt 00:00:17]} 5. e3 {[%clk 01:42:33]} {[%emt 00:00:07]}
O-O {[%clk 01:40:42]} {[%emt 00:01:36]} 6. Bd2 {[%clk 01:42:57]} {[%emt
00:00:05]} b6 {[%clk 01:38:12]} {[%emt 00:03:00]} 7. Rc1 {[%clk 01:42:43]}
{[%emt 00:00:44]} Bb7 {[%clk 01:36:49]} {[%emt 00:01:53]} 8. cxd5 {[%clk
01:42:57]} {[%emt 00:00:16]} exd5 {[%clk 01:36:30]} {[%emt 00:00:49]} 9. a3
{[%clk 01:43:22]} {[%emt 00:00:05]} Be7 {[%clk 01:29:43]} {[%emt 00:07:16]} 10.
g3 {[%clk 01:43:25]} {[%emt 00:00:27]} c5 {[%clk 01:20:56]} {[%emt 00:09:18]}
11. Bg2 {[%clk 01:42:55]} {[%emt 00:00:59]} Nc6 {[%clk 01:20:41]} {[%emt
00:00:46]} 12. O-O {[%clk 01:41:59]} {[%emt 00:01:25]} Rc8 {[%clk 01:10:16]}
{[%emt 00:10:56]} 13. Re1 {[%clk 01:20:05]} {[%emt 00:22:24]} Ne4 {[%clk
01:00:09]} {[%emt 00:10:37]} 14. Ne2 {[%clk 01:07:32]} {[%emt 00:13:02]} Re8
{[%clk 00:55:15]} {[%emt 00:05:24]} 15. dxc5 {[%clk 00:59:37]} {[%emt
00:08:25]} bxc5 {[%clk 00:54:17]} {[%emt 00:01:28]} 16. Nf4 {[%clk 00:58:22]}
{[%emt 00:01:45]} Bf6 {[%clk 00:41:50]} {[%emt 00:12:58]} 17. Qc2 {[%clk
00:34:59]} {[%emt 00:23:53]} g5 {[%clk 00:35:22]} {[%emt 00:06:57]} 18. Qb3
{[%clk 00:26:27]} {[%emt 00:09:03]} Rb8 {[%clk 00:27:01]} {[%emt 00:08:50]} 19.
Nxd5 {[%clk 00:26:04]} {[%emt 00:00:54]} Ne5 {[%clk 00:27:03]} {[%emt
00:00:28]} 20. Nxe5 {[%clk 00:21:32]} {[%emt 00:05:02]} Bxd5 {[%clk 00:27:09]}
{[%emt 00:00:23]} 21. Qa4 {[%clk 00:19:51]} {[%emt 00:02:11]} Rxe5 {[%clk
00:25:15]} {[%emt 00:02:24]} 22. Ba5 {[%clk 00:20:16]} {[%emt 00:00:06]} Qc8
{[%clk 00:20:37]} {[%emt 00:05:07]} 23. Qc2 {[%clk 00:20:17]} {[%emt 00:00:29]}
g4 {[%clk 00:18:20]} {[%emt 00:02:47]} 24. b4 {[%clk 00:16:51]} {[%emt
00:03:57]} Qc6 {[%clk 00:14:01]} {[%emt 00:04:49]} 25. Red1 {[%clk 00:13:01]}
{[%emt 00:04:19]} h5 {[%clk 00:13:06]} {[%emt 00:01:26]} 26. Rxd5 {[%clk
00:10:51]} {[%emt 00:02:40]} Qxd5 {[%clk 00:12:27]} {[%emt 00:01:08]} 27. Bc7
{[%clk 00:11:14]} {[%emt 00:00:07]} Rbe8 {[%clk 00:10:46]} {[%emt 00:02:12]} 28.
Bxe5 {[%clk 00:09:58]} {[%emt 00:01:45]} Qxe5 {[%clk 00:09:09]} {[%emt
00:02:07]} 29. Bxe4 {[%clk 00:07:52]} {[%emt 00:02:37]} Qxe4 {[%clk 00:08:48]}
{[%emt 00:00:52]} 30. Qxe4 {[%clk 00:08:00]} {[%emt 00:00:21]} Rxe4 {[%clk
00:09:15]} {[%emt 00:00:02]} 31. Rxc5 {[%clk 00:08:19]} {[%emt 00:00:11]} Re5
{[%clk 00:05:07]} {[%emt 00:04:38]} 32. Rc4 {[%clk 00:08:04]} {[%emt 00:00:45]}
Kg7 {[%clk 00:04:07]} {[%emt 00:01:29]} 33. Kg2 {[%clk 00:07:00]} {[%emt
00:01:35]} Kg6 {[%clk 00:02:09]} {[%emt 00:02:29]} 34. h3 {[%clk 00:06:33]}
{[%emt 00:00:56]} Kf5 {[%clk 00:01:25]} {[%emt 00:01:13]} 35. Rf4+ {[%clk
00:05:57]} {[%emt 00:01:07]} Kg5 {[%clk 00:01:42]} {[%emt 00:00:15]} 36. Rc4
{[%clk 00:06:06]} {[%emt 00:00:20]} Re7 {[%clk 00:01:14]} {[%emt 00:00:56]} 37.
a4 {[%clk 00:03:28]} {[%emt 00:03:11]} Be5 {[%clk 00:01:35]} {[%emt 00:00:08]}
38. Rc8 {[%clk 00:03:02]} {[%emt 00:00:56]} Rc7 {[%clk 00:01:15]} {[%emt
00:00:51]} 39. Ra8 {[%clk 00:02:09]} {[%emt 00:01:23]} Bc3 {[%clk 00:01:04]}
{[%emt 00:00:40]} 40. Rb8 {[%clk 00:02:19]} {[%emt 00:00:20]} gxh3+ {[%clk
00:00:37]} {[%emt 00:00:57]} 41. Kxh3 {[%clk 00:02:42]} {[%emt 00:00:06]} Be1
{[%clk 00:00:53]} {[%emt 00:00:13]} 42. f4+ {[%clk 00:44:13]} {[%emt 00:08:59]}
Kf6 {[%clk 00:41:36]} {[%emt 00:09:48]} 43. e4 {[%clk 00:42:20]} {[%emt
00:02:23]} Rc3 {[%clk 00:35:22]} {[%emt 00:06:45]} 44. e5+ {[%clk 00:39:59]}
{[%emt 00:02:51]} Kg7 {[%clk 00:28:49]} {[%emt 00:07:02]} 45. Rb7 {[%clk
00:39:49]} {[%emt 00:00:40]} Rxg3+ {[%clk 00:27:59]} {[%emt 00:01:20]} 46. Kh2
{[%clk 00:40:11]} {[%emt 00:00:08]} Re3 {[%clk 00:22:51]} {[%emt 00:05:38]} 47.
b5 {[%clk 00:39:44]} {[%emt 00:00:58]} Bg3+ {[%clk 00:22:18]} {[%emt 00:01:03]}
48. Kg2 {[%clk 00:40:06]} {[%emt 00:00:07]} Bxf4 {[%clk 00:22:43]} {[%emt
00:00:05]} 49. e6 {[%clk 00:38:47]} {[%emt 00:01:49]} Rxe6 {[%clk 00:23:06]}
{[%emt 00:00:07]} 50. Rxa7 {[%clk 00:39:15]} {[%emt 00:00:03]} Re3 {[%clk
00:21:10]} {[%emt 00:02:26]} 51. Rd7 {[%clk 00:39:20]} {[%emt 00:00:23]} h4
{[%clk 00:20:54]} {[%emt 00:00:47]} 52. Rd4 {[%clk 00:39:19]} {[%emt 00:00:31]}
h3+ {[%clk 00:21:16]} {[%emt 00:00:08]} 53. Kf2 {[%clk 00:39:47]} {[%emt
00:00:02]} h2 {[%clk 00:21:08]} {[%emt 00:00:38]} 0-1